[Event "FIDE CB Open 2022"]
[Site "Ceske Budejovice"]
[Date "2022.07.02"]
[Round "2.4"]
[White "Pirola, Claudionor Alcides L"]
[Black "Simek, Petr"]
[Result "1-0"]
[ECO "B11"]
[WhiteElo "2100"]
[BlackElo "2348"]
[Annotator "RC"]
[PlyCount "95"]
[EventDate "2022.07.01"]
[EventType "swiss"]
[EventCountry "CZE"]
[SourceTitle "playchess.com"]
[Source "ChessBase"]
[SourceQuality "1"]
[TimeControl "40/5400+30:1800+30"]

1. e4 {[%emt 0:00:04]} c6 {[%emt 0:07:30]} 2. Nc3 {[%emt 0:00:31]} d5 {[%emt 0:00:03]} 3. Nf3 {[%emt 0:00:08]} Bg4 {[%emt 0:06:56]} 4. h3 {[%emt 0:00:10]} Bxf3 {[%emt 0:00:10]} 5. Qxf3 {[%emt 0:00:03]} e6 {[%emt 0:00:05]} 6. Be2 {[%emt 0:01:11]} Bc5 {[%emt 0:19:45]} 7. O-O {[%emt 0:00:40]} Ne7 {[%emt 0:02:00]} 8. Rd1 {[%emt 0:03:51]} Bd4 {[%emt 0:00:09]} 9. Bf1 {[%emt 0:01:05]} Nd7 {[%emt 0:04:59]} 10. Ne2 {[%emt 0:01:52]} Bb6 {[%emt 0:17:41]} 11. d4 {[%emt 0:13:10]} dxe4 {[%emt 0:00:30]} 12. Qxe4 {[%emt 0:00:30]} Nf6 {[%emt 0:00:30]} 13. Qf3 {[%emt 0:00:30]} Qd5 {[%emt 0:00:30]} 14. Qa3 {[%emt 0:00:30]} Bc7 {[%emt 0:00:30]} 15. Bf4 {[%emt 0:04:33]} Bxf4 {[%emt 0:04:48]} 16. Nxf4 {[%emt 0:00:10]} Qd7 {[%emt 0:00:03]} 17. Nd3 {[%emt 0:05:54]} O-O {[%emt 0:00:58]} 18. Ne5 {[%emt 0:00:19]} Qc7 {[%emt 0:00:22]} 19. c4 {[%emt 0:04:51]} Rfd8 {[%emt 0:02:13]} 20. Rac1 {[%emt 0:01:59]} Nf5 {[%emt 0:13:48]} 21. Nf3 {[%emt 0:06:05]} Qb6 {[%emt 0:06:40]} 22. c5 {[%emt 0:09:49]} Qc7 {[%emt 0:00:06]} 23. g4 {[%emt 0:03:10]} Ne7 {[%emt 0:00:18]} 24. Ne5 {[%emt 0:00:22]} Ng6 {[%emt 0:00:55]} 25. Nc4 {[%emt 0:03:38]} Qf4 {[%emt 0:02:18]} 26. Nd6 {[%emt 0:04:26]} Ne4 {[%emt 0:03:31]} 27. Nxe4 {[%emt 0:03:13]} Qxe4 {[%emt 0:00:03]} 28. Qe3 {[%emt 0:01:08]} Qf4 {[%emt 0:01:01]} 29. b4 {[%emt 0:00:37]} a6 {[%emt 0:00:34]} 30. a4 {[%emt 0:00:24]} h6 {[%emt 0:03:59]} 31. Bd3 {[%emt 0:04:35]} Qf6 {[%emt 0:00:06]} 32. Bxg6 {[%emt 0:02:19]} Qxg6 {[%emt 0:00:05]} 33. Rb1 {[%emt 0:00:10]} Qc2 {[%emt 0:01:10]} 34. Qb3 {[%emt 0:03:09]} Qe4 {[%emt 0:00:07]} 35. Qe3 {[%emt 0:00:13]} Qc2 {[%emt 0:01:08]} 36. Qb3 {[%emt 0:00:01]} Qe4 {[%emt 0:00:05]} 37. Qe3 {[%emt 0:00:13]} Qd5 {[%emt 0:00:20]} 38. Qb3 {[%emt 0:03:26]} Rd7 {[%emt 0:02:12]} 39. Qxd5 {[%emt 0:00:00]} Rxd5 {[%emt 0:00:48]} 40. b5 {[%emt 0:00:00]} axb5 {[%emt 0:00:00]} 41. axb5 {[%emt 0:02:57]} g5 {[%emt 0:09:50]} 42. bxc6 {[%emt 0:01:08]} bxc6 {[%emt 0:00:01]} 43. Rb6 {[%emt 0:00:33]} Rc8 {[%emt 0:00:08]} 44. Kg2 {[%emt 0:08:22]} Kg7 {[%emt 0:01:00]} 45. Kf3 {[%emt 0:00:33]} f6 {[%emt 0:07:14]} 46. Kg2 {[%emt 0:00:07]} h5 {[%emt 0:01:14]} 47. gxh5 {[%emt 0:00:00]} Kh6 {[%emt 0:00:02]} 48. Ra1 {[%emt 0:12:54]} 1-0

[Event "FIDE CB Open 2022"]
[Site "Ceske Budejovice"]
[Date "2022.07.02"]
[Round "2.5"]
[White "Mostbauer, Florian"]
[Black "Laith, Kasib"]
[Result "1-0"]
[ECO "A24"]
[WhiteElo "2303"]
[BlackElo "2079"]
[Annotator "RC"]
[PlyCount "61"]
[EventDate "2022.07.01"]
[EventType "swiss"]
[EventCountry "CZE"]
[SourceTitle "playchess.com"]
[Source "ChessBase"]
[SourceQuality "1"]
[TimeControl "40/5400+30:1800+30"]

1. c4 {[%emt 0:00:02]} Nf6 {[%emt 0:09:39]} 2. g3 {[%emt 0:00:09]} g6 {[%emt 0:00:38]} 3. Bg2 {[%emt 0:00:10]} Bg7 {[%emt 0:00:28]} 4. Nc3 {[%emt 0:00:14]} O-O {[%emt 0:00:14]} 5. e3 {[%emt 0:00:16]} d6 {[%emt 0:00:59]} 6. Nge2 {[%emt 0:00:14]} e5 {[%emt 0:00:10]} 7. O-O {[%emt 0:00:20]} Nbd7 {[%emt 0:02:30]} 8. h3 {[%emt 0:03:21]} Re8 {[%emt 0:04:20]} 9. d3 {[%emt 0:02:52]} a5 {[%emt 0:03:57]} 10. Rb1 {[%emt 0:02:45]} Nc5 {[%emt 0:05:59]} 11. e4 {[%emt 0:01:15]} Nfd7 {[%emt 0:09:51]} 12. Be3 {[%emt 0:04:05]} f5 {[%emt 0:04:53]} 13. exf5 {[%emt 0:01:39]} gxf5 {[%emt 0:00:09]} 14. d4 {[%emt 0:01:52]} Ne6 {[%emt 0:04:40]} 15. dxe5 {[%emt 0:03:00]} dxe5 {[%emt 0:04:25]} 16. Qd3 {[%emt 0:11:49]} Qf6 {[%emt 0:04:42]} 17. f4 {[%emt 0:18:36]} e4 {[%emt 0:03:51]} 18. Qc2 {[%emt 0:00:53]} Ndc5 {[%emt 0:08:54]} 19. g4 {[%emt 0:06:57]} Ra6 {[%emt 0:15:00]} 20. Nd5 {[%emt 0:15:08]} Qf7 {[%emt 0:03:50]} 21. gxf5 {[%emt 0:00:37]} Qxf5 {[%emt 0:01:05]} 22. Kh2 {[%emt 0:00:42]} Rd6 {[%emt 0:04:15]} 23. Rbd1 {[%emt 0:05:30]} Kh8 {[%emt 0:02:35]} 24. Ng3 {[%emt 0:01:09]} Qf7 {[%emt 0:01:28]} 25. f5 {[%emt 0:00:42]} Nd4 {[%emt 0:01:54]} 26. Rxd4 {[%emt 0:01:38]} Be5 {[%emt 0:01:33]} 27. Rdd1 {[%emt 0:02:12]} Nd3 {[%emt 0:00:59]} 28. Bxe4 {[%emt 0:08:55]} Rg8 {[%emt 0:00:44]} 29. Rxd3 {[%emt 0:01:54]} Rxg3 {[%emt 0:00:36]} 30. Bf4 {[%emt 0:00:36]} Bxf4 {[%emt 0:00:11]} 31. Rxf4 {[%emt 0:00:19]} 1-0

[Event "FIDE CB Open 2022"]
[Site "Ceske Budejovice"]
[Date "2022.07.02"]
[Round "2.6"]
[White "Hladky, Tadeas"]
[Black "Heimisson, Hilmir Freyr"]
[Result "0-1"]
[ECO "B51"]
[WhiteElo "2095"]
[BlackElo "2281"]
[Annotator "RC"]
[PlyCount "85"]
[EventDate "2022.07.01"]
[EventType "swiss"]
[EventCountry "CZE"]
[SourceTitle "playchess.com"]
[Source "ChessBase"]
[SourceQuality "1"]
[TimeControl "40/5400+30:1800+30"]

1. e4 {[%emt 0:00:53]} c5 {[%emt 0:01:25]} 2. Nf3 {[%emt 0:00:07]} d6 {[%emt 0:00:52]} 3. Bb5+ {[%emt 0:00:11]} Nd7 {[%emt 0:00:32]} 4. d4 {[%emt 0:00:25]} cxd4 {[%emt 0:01:53]} 5. Qxd4 {[%emt 0:00:11]} a6 {[%emt 0:00:17]} 6. Bxd7+ {[%emt 0:00:06]} Bxd7 {[%emt 0:00:07]} 7. O-O {[%emt 0:00:07]} e5 {[%emt 0:01:06]} 8. Qd3 {[%emt 0:00:05]} Rc8 {[%emt 0:00:40]} 9. c4 {[%emt 0:01:56]} Qc7 {[%emt 0:02:33]} 10. b3 {[%emt 0:00:17]} b5 {[%emt 0:00:10]} 11. Nbd2 {[%emt 0:02:25]} Nf6 {[%emt 0:05:55]} 12. Bb2 {[%emt 0:02:32]} Be7 {[%emt 0:04:16]} 13. Rac1 {[%emt 0:02:41]} Qb6 {[%emt 0:07:10]} 14. cxb5 {[%emt 0:14:53]} axb5 {[%emt 0:01:17]} 15. Rxc8+ {[%emt 0:02:17]} Bxc8 {[%emt 0:00:12]} 16. Rc1 {[%emt 0:01:55]} O-O {[%emt 0:02:50]} 17. h3 {[%emt 0:10:10]} Bb7 {[%emt 0:06:24]} 18. Nh2 {[%emt 0:11:35]} Nh5 {[%emt 0:15:21]} 19. g3 {[%emt 0:13:49]} Rd8 {[%emt 0:02:27]} 20. Nhf1 {[%emt 0:03:28]} Bg5 {[%emt 0:12:16]} 21. h4 {[%emt 0:06:23]} Bh6 {[%emt 0:00:35]} 22. Qc3 {[%emt 0:01:56]} g6 {[%emt 0:11:06]} 23. Qc7 {[%emt 0:01:31]} Qxc7 {[%emt 0:00:18]} 24. Rxc7 {[%emt 0:00:04]} Ba8 {[%emt 0:00:50]} 25. Bc3 {[%emt 0:05:30]} Ng7 {[%emt 0:05:17]} 26. Ba5 {[%emt 0:10:08]} Ne6 {[%emt 0:01:02]} 27. Rc3 {[%emt 0:01:26]} Re8 {[%emt 0:02:38]} 28. Rd3 {[%emt 0:00:08]} Bf8 {[%emt 0:04:24]} 29. f3 {[%emt 0:04:48]} Bb7 {[%emt 0:02:45]} 30. Bb4 {[%emt 0:00:17]} Ra8 {[%emt 0:03:23]} 31. a3 {[%emt 0:00:06]} Nd4 {[%emt 0:01:39]} 32. Ne3 {[%emt 0:03:27]} Rc8 {[%emt 0:00:42]} 33. Kf2 {[%emt 0:00:28]} f6 {[%emt 0:02:29]} 34. Bc3 {[%emt 0:00:37]} Nc6 {[%emt 0:01:16]} 35. Bb2 {[%emt 0:00:05]} Kf7 {[%emt 0:00:39]} 36. Nd5 {[%emt 0:00:51]} Ke6 {[%emt 0:00:46]} 37. Nb6 {[%emt 0:00:32]} Rc7 {[%emt 0:00:42]} 38. Nf1 {[%emt 0:00:00]} Bh6 {[%emt 0:00:00]} 39. Nd5 {[%emt 0:00:00]} Rd7 {[%emt 0:00:00]} 40. Rd1 {[%emt 0:00:00]} Ba6 {[%emt 0:00:00]} 41. b4 {[%emt 0:23:12]} Nd4 {[%emt 0:19:57]} 42. Bc1 {[%emt 0:02:56]} f5 {[%emt 0:09:35]} 43. f4 {[%emt 0:06:59]} 0-1

[Event "FIDE CB Open 2022"]
[Site "Ceske Budejovice"]
[Date "2022.07.02"]
[Round "2.7"]
[White "Toman, Ondrej"]
[Black "Valantiejus, Vaidotas"]
[Result "1/2-1/2"]
[ECO "D31"]
[WhiteElo "2276"]
[BlackElo "2062"]
[Annotator "RC"]
[PlyCount "86"]
[EventDate "2022.07.01"]
[EventType "swiss"]
[EventCountry "CZE"]
[SourceTitle "playchess.com"]
[Source "ChessBase"]
[SourceQuality "1"]
[TimeControl "40/5400+30:1800+30"]

1. d4 {[%emt 0:00:04]} d5 {[%emt 0:00:25]} 2. c4 {[%emt 0:00:07]} e6 {[%emt 0:00:15]} 3. Nc3 {[%emt 0:00:36]} a6 {[%emt 0:00:20]} 4. cxd5 {[%emt 0:00:00]} exd5 {[%emt 0:00:07]} 5. Bf4 {[%emt 0:00:30]} Nf6 {[%emt 0:00:17]} 6. Nf3 {[%emt 0:01:11]} Bd6 {[%emt 0:00:52]} 7. Be5 {[%emt 0:01:08]} c6 {[%emt 0:01:22]} 8. h3 {[%emt 0:07:20]} O-O {[%emt 0:01:00]} 9. e3 {[%emt 0:00:29]} Qe7 {[%emt 0:04:36]} 10. Bd3 {[%emt 0:03:05]} Nbd7 {[%emt 0:00:30]} 11. Bxd6 {[%emt 0:00:55]} Qxd6 {[%emt 0:00:03]} 12. O-O {[%emt 0:00:18]} Re8 {[%emt 0:01:55]} 13. Qc2 {[%emt 0:01:37]} g6 {[%emt 0:07:01]} 14. a3 {[%emt 0:08:22]} a5 {[%emt 0:03:03]} 15. Nd2 {[%emt 0:02:44]} Nf8 {[%emt 0:03:38]} 16. Na4 {[%emt 0:02:22]} Ne6 {[%emt 0:02:55]} 17. Nb6 {[%emt 0:02:49]} Ra7 {[%emt 0:00:27]} 18. Nb3 {[%emt 0:02:01]} Nd7 {[%emt 0:03:34]} 19. Nxd7 {[%emt 0:03:12]} Bxd7 {[%emt 0:00:21]} 20. Rac1 {[%emt 0:01:47]} b6 {[%emt 0:02:16]} 21. Rfd1 {[%emt 0:04:30]} Ng5 {[%emt 0:12:40]} 22. Nd2 {[%emt 0:04:04]} Qe7 {[%emt 0:08:48]} 23. Re1 {[%emt 0:06:27]} Rc7 {[%emt 0:03:35]} 24. f4 {[%emt 0:05:34]} Ne6 {[%emt 0:03:02]} 25. Nf3 {[%emt 0:06:16]} c5 {[%emt 0:05:57]} 26. Qf2 {[%emt 0:05:26]} Rec8 {[%emt 0:02:35]} 27. Ne5 {[%emt 0:03:32]} Ng7 {[%emt 0:04:05]} 28. Ba6 {[%emt 0:02:00]} Ra8 {[%emt 0:00:28]} 29. Be2 {[%emt 0:00:04]} Rac8 {[%emt 0:01:57]} 30. Bf3 {[%emt 0:02:33]} Be6 {[%emt 0:00:22]} 31. Qd2 {[%emt 0:02:28]} Nf5 {[%emt 0:06:57]} 32. dxc5 {[%emt 0:13:00]} Rxc5 {[%emt 0:00:10]} 33. e4 {[%emt 0:00:58]} dxe4 {[%emt 0:01:01]} 34. Bxe4 {[%emt 0:00:13]} Rxc1 {[%emt 0:04:11]} 35. Rxc1 {[%emt 0:00:01]} Rxc1+ {[%emt 0:00:08]} 36. Qxc1 {[%emt 0:00:04]} Qd6 {[%emt 0:00:23]} 37. Bxf5 {[%emt 0:03:06]} Bxf5 {[%emt 0:00:03]} 38. Qe3 {[%emt 0:00:34]} Be6 {[%emt 0:00:49]} 39. Kh1 {[%emt 0:01:45]} f6 {[%emt 0:07:40]} 40. Nf3 {[%emt 0:00:59]} Kg7 {[%emt 0:00:51]} 41. Nd4 {[%emt 0:33:59]} Bd7 {[%emt 0:31:23]} 42. Qe4 {[%emt 0:01:09]} Kf7 {[%emt 0:04:17]} 43. h4 {[%emt 0:00:00]} h6 {[%emt 0:00:00]} 1/2-1/2

[Event "FIDE CB Open 2022"]
[Site "Ceske Budejovice"]
[Date "2022.07.02"]
[Round "2.8"]
[White "Placer, Sebastian"]
[Black "Hrbek, Stepan"]
[Result "0-1"]
[ECO "E15"]
[WhiteElo "2062"]
[BlackElo "2272"]
[Annotator "RC"]
[PlyCount "66"]
[EventDate "2022.07.01"]
[EventType "swiss"]
[EventCountry "CZE"]
[SourceTitle "playchess.com"]
[Source "ChessBase"]
[SourceQuality "1"]
[TimeControl "40/5400+30:1800+30"]

1. d4 {[%emt 0:00:06]} Nf6 {[%emt 0:04:57]} 2. c4 {[%emt 0:00:13]} e6 {[%emt 0:00:08]} 3. Nf3 {[%emt 0:00:13]} b6 {[%emt 0:00:14]} 4. g3 {[%emt 0:00:10]} Ba6 {[%emt 0:00:07]} 5. b3 {[%emt 0:00:04]} Bb4+ {[%emt 0:00:07]} 6. Bd2 {[%emt 0:00:03]} Be7 {[%emt 0:00:13]} 7. Nc3 {[%emt 0:01:03]} d5 {[%emt 0:01:15]} 8. cxd5 {[%emt 0:01:18]} exd5 {[%emt 0:00:34]} 9. Bg2 {[%emt 0:00:11]} O-O {[%emt 0:00:10]} 10. O-O {[%emt 0:00:34]} Re8 {[%emt 0:00:05]} 11. Re1 {[%emt 0:00:56]} Nbd7 {[%emt 0:03:34]} 12. Ne5 {[%emt 0:06:09]} Bb7 {[%emt 0:00:23]} 13. Nd3 {[%emt 0:20:41]} c5 {[%emt 0:15:33]} 14. Nf4 {[%emt 0:17:50]} cxd4 {[%emt 0:07:45]} 15. Ncxd5 {[%emt 0:01:52]} Nxd5 {[%emt 0:01:22]} 16. Nxd5 {[%emt 0:00:36]} Nc5 {[%emt 0:00:18]} 17. Nxe7+ {[%emt 0:01:43]} Qxe7 {[%emt 0:00:19]} 18. Bxb7 {[%emt 0:01:05]} Qxb7 {[%emt 0:01:15]} 19. Bb4 {[%emt 0:01:40]} Rad8 {[%emt 0:08:04]} 20. Qc2 {[%emt 0:09:33]} Ne6 {[%emt 0:16:14]} 21. Rad1 {[%emt 0:19:42]} a5 {[%emt 0:09:35]} 22. Ba3 {[%emt 0:01:55]} Ng5 {[%emt 0:00:27]} 23. f3 {[%emt 0:08:24]} d3 {[%emt 0:01:35]} 24. Qd2 {[%emt 0:02:26]} dxe2 {[%emt 0:00:28]} 25. Qxd8 {[%emt 0:00:26]} Nxf3+ {[%emt 0:00:04]} 26. Kf2 {[%emt 0:00:03]} exd1=N+ {[%emt 0:00:07]} 27. Rxd1 {[%emt 0:00:31]} Qc6 {[%emt 0:03:46]} 28. Qd5 {[%emt 0:03:01]} Qc2+ {[%emt 0:05:42]} 29. Kxf3 {[%emt 0:00:18]} Qe2+ {[%emt 0:00:05]} 30. Kf4 {[%emt 0:00:19]} h5 {[%emt 0:00:05]} 31. Be7 {[%emt 0:02:13]} Rxe7 {[%emt 0:00:56]} 32. Qd8+ {[%emt 0:00:26]} Re8 {[%emt 0:00:05]} 33. Qd7 {[%emt 0:00:38]} Qe3+ {[%emt 0:00:14]} 0-1

[Event "FIDE CB Open 2022"]
[Site "Ceske Budejovice"]
[Date "2022.07.02"]
[Round "2.9"]
[White "Dotzer, Lukas"]
[Black "Kovalskyi, Roman"]
[Result "0-1"]
[ECO "B36"]
[WhiteElo "2269"]
[BlackElo "2056"]
[Annotator "RC"]
[PlyCount "70"]
[EventDate "2022.07.01"]
[EventType "swiss"]
[EventCountry "CZE"]
[SourceTitle "playchess.com"]
[Source "ChessBase"]
[SourceQuality "1"]
[TimeControl "40/5400+30:1800+30"]

1. e4 {[%emt 0:00:04]} c5 {[%emt 0:00:54]} 2. Nf3 {[%emt 0:00:06]} g6 {[%emt 0:00:04]} 3. d4 {[%emt 0:00:05]} cxd4 {[%emt 0:00:06]} 4. Nxd4 {[%emt 0:00:06]} Nc6 {[%emt 0:00:02]} 5. c4 {[%emt 0:00:16]} Nf6 {[%emt 0:00:05]} 6. Nc3 {[%emt 0:00:17]} d6 {[%emt 0:00:04]} 7. Be2 {[%emt 0:00:44]} Nxd4 {[%emt 0:00:13]} 8. Qxd4 {[%emt 0:00:11]} Bg7 {[%emt 0:00:04]} 9. Be3 {[%emt 0:01:10]} O-O {[%emt 0:00:14]} 10. Qd2 {[%emt 0:04:17]} a5 {[%emt 0:01:08]} 11. O-O {[%emt 0:02:49]} a4 {[%emt 0:01:12]} 12. Rac1 {[%emt 0:06:18]} Qa5 {[%emt 0:00:29]} 13. f3 {[%emt 0:08:28]} Be6 {[%emt 0:02:23]} 14. Nd5 {[%emt 0:05:51]} Qxd2 {[%emt 0:02:56]} 15. Nxe7+ {[%emt 0:04:00]} Kh8 {[%emt 0:00:35]} 16. Bxd2 {[%emt 0:00:07]} Rfe8 {[%emt 0:00:02]} 17. Nd5 {[%emt 0:00:10]} Nxd5 {[%emt 0:00:22]} 18. cxd5 {[%emt 0:00:10]} Bxd5 {[%emt 0:00:03]} 19. Bb5 {[%emt 0:00:14]} Re5 {[%emt 0:00:05]} 20. Bc3 {[%emt 0:02:38]} Bxa2 {[%emt 0:00:13]} 21. Bxe5 {[%emt 0:01:06]} Bxe5 {[%emt 0:00:01]} 22. Rc2 {[%emt 0:02:18]} Bb3 {[%emt 0:01:51]} 23. Rd2 {[%emt 0:12:39]} Ra5 {[%emt 0:00:19]} 24. Bd3 {[%emt 0:02:07]} Bf4 {[%emt 0:07:09]} 25. Re2 {[%emt 0:00:09]} b5 {[%emt 0:00:16]} 26. g3 {[%emt 0:10:21]} Be5 {[%emt 0:00:51]} 27. Rc1 {[%emt 0:01:02]} Be6 {[%emt 0:27:27]} 28. Rc7 {[%emt 0:22:03]} b4 {[%emt 0:06:17]} 29. Bc4 {[%emt 0:03:07]} Rc5 {[%emt 0:17:55]} 30. Rxc5 {[%emt 0:09:15]} dxc5 {[%emt 0:00:05]} 31. Bd5 {[%emt 0:00:08]} c4 {[%emt 0:08:29]} 32. Rc2 {[%emt 0:00:36]} c3 {[%emt 0:02:18]} 33. bxc3 {[%emt 0:01:12]} b3 {[%emt 0:01:35]} 34. Rb2 {[%emt 0:00:18]} Bxc3 {[%emt 0:00:07]} 35. Rb1 {[%emt 0:00:10]} b2 {[%emt 0:00:37]} 0-1

[Event "FIDE CB Open 2022"]
[Site "Ceske Budejovice"]
[Date "2022.07.02"]
[Round "2.10"]
[White "Simecek, Bohumil"]
[Black "Zeman, Matyas"]
[Result "0-1"]
[ECO "D02"]
[WhiteElo "2059"]
[BlackElo "2262"]
[Annotator "RC"]
[PlyCount "50"]
[EventDate "2022.07.01"]
[EventType "swiss"]
[EventCountry "CZE"]
[SourceTitle "playchess.com"]
[Source "ChessBase"]
[SourceQuality "1"]
[TimeControl "40/5400+30:1800+30"]

1. d4 {[%emt 0:03:33]} d5 {[%emt 0:00:11]} 2. Nf3 {[%emt 0:00:19]} Nf6 {[%emt 0:00:42]} 3. Bf4 {[%emt 0:00:42]} c5 {[%emt 0:00:00]} 4. e3 {[%emt 0:01:11]} Nc6 {[%emt 0:00:00]} 5. c3 {[%emt 0:00:18]} Qb6 {[%emt 0:00:20]} 6. Qb3 {[%emt 0:01:14]} c4 {[%emt 0:00:47]} 7. Qc2 {[%emt 0:07:31]} Bf5 {[%emt 0:00:32]} 8. Qc1 {[%emt 0:00:22]} Nh5 {[%emt 0:00:14]} 9. Nbd2 {[%emt 0:12:21]} Nxf4 {[%emt 0:14:57]} 10. exf4 {[%emt 0:01:34]} h6 {[%emt 0:00:11]} 11. Be2 {[%emt 0:03:07]} e6 {[%emt 0:00:20]} 12. O-O {[%emt 0:00:19]} Bd6 {[%emt 0:00:17]} 13. g3 {[%emt 0:00:12]} O-O {[%emt 0:01:08]} 14. Bd1 {[%emt 0:02:30]} f6 {[%emt 0:02:20]} 15. Re1 {[%emt 0:00:51]} e5 {[%emt 0:25:23]} 16. b3 {[%emt 0:20:28]} exd4 {[%emt 0:02:46]} 17. bxc4 {[%emt 0:00:21]} dxc3 {[%emt 0:00:53]} 18. Qxc3 {[%emt 0:01:00]} Bc5 {[%emt 0:02:04]} 19. Re2 {[%emt 0:02:48]} Nd4 {[%emt 0:01:57]} 20. Re1 {[%emt 0:07:05]} Rfe8 {[%emt 0:10:16]} 21. Rxe8+ {[%emt 0:04:17]} Rxe8 {[%emt 0:00:24]} 22. Nb3 {[%emt 0:11:07]} Nxb3 {[%emt 0:00:57]} 23. Qxb3 {[%emt 0:03:26]} d4 {[%emt 0:03:07]} 24. Bc2 {[%emt 0:07:05]} d3 {[%emt 0:00:51]} 25. Bxd3 {[%emt 0:00:17]} Qxb3 {[%emt 0:00:04]} 0-1

[Event "FIDE CB Open 2022"]
[Site "Ceske Budejovice"]
[Date "2022.07.02"]
[Round "2.11"]
[White "Maryasin, Boris"]
[Black "Sudrich, Radek"]
[Result "1/2-1/2"]
[ECO "A12"]
[WhiteElo "2260"]
[BlackElo "2049"]
[Annotator "RC"]
[PlyCount "67"]
[EventDate "2022.07.01"]
[EventType "swiss"]
[EventCountry "CZE"]
[SourceTitle "playchess.com"]
[Source "ChessBase"]
[SourceQuality "1"]
[TimeControl "40/5400+30:1800+30"]

1. Nf3 {[%emt 0:00:53]} d5 {[%emt 0:00:18]} 2. b3 {[%emt 0:00:25]} Nf6 {[%emt 0:02:09]} 3. Bb2 {[%emt 0:00:14]} c6 {[%emt 0:01:57]} 4. g3 {[%emt 0:00:30]} Bg4 {[%emt 0:02:28]} 5. Bg2 {[%emt 0:00:21]} Nbd7 {[%emt 0:00:24]} 6. c4 {[%emt 0:00:57]} e6 {[%emt 0:00:52]} 7. h3 {[%emt 0:00:47]} Bh5 {[%emt 0:00:15]} 8. d3 {[%emt 0:01:20]} Bd6 {[%emt 0:03:59]} 9. Nbd2 {[%emt 0:00:26]} O-O {[%emt 0:02:52]} 10. O-O {[%emt 0:03:01]} Qe7 {[%emt 0:04:24]} 11. e4 {[%emt 0:01:43]} Ba3 {[%emt 0:03:30]} 12. Qc1 {[%emt 0:00:52]} Bxb2 {[%emt 0:00:19]} 13. Qxb2 {[%emt 0:00:06]} dxe4 {[%emt 0:03:22]} 14. dxe4 {[%emt 0:00:14]} Bxf3 {[%emt 0:01:35]} 15. Bxf3 {[%emt 0:00:17]} e5 {[%emt 0:00:53]} 16. b4 {[%emt 0:00:53]} c5 {[%emt 0:04:53]} 17. a3 {[%emt 0:00:25]} Rfd8 {[%emt 0:01:03]} 18. Qc3 {[%emt 0:10:37]} Rac8 {[%emt 0:03:22]} 19. b5 {[%emt 0:01:52]} Nf8 {[%emt 0:01:55]} 20. Nb3 {[%emt 0:00:30]} Qc7 {[%emt 0:04:16]} 21. Rad1 {[%emt 0:02:26]} Ne6 {[%emt 0:02:19]} 22. Bg2 {[%emt 0:00:23]} Nd4 {[%emt 0:00:17]} 23. Qe3 {[%emt 0:02:26]} Nxb3 {[%emt 0:00:57]} 24. Qxb3 {[%emt 0:00:04]} Rxd1 {[%emt 0:00:15]} 25. Rxd1 {[%emt 0:00:09]} Rd8 {[%emt 0:00:29]} 26. Rxd8+ {[%emt 0:03:06]} Qxd8 {[%emt 0:00:05]} 27. Qa4 {[%emt 0:01:42]} Qb8 {[%emt 0:02:30]} 28. Qd1 {[%emt 0:01:25]} Kf8 {[%emt 0:04:44]} 29. Qd2 {[%emt 0:01:02]} Ke7 {[%emt 0:08:29]} 30. Qg5 {[%emt 0:00:59]} Kf8 {[%emt 0:02:44]} 31. f4 {[%emt 0:01:46]} h6 {[%emt 0:09:11]} 32. Qf5 {[%emt 0:00:28]} Ke7 {[%emt 0:00:24]} 33. fxe5 {[%emt 0:03:47]} Nd7 {[%emt 0:01:07]} 34. e6 {[%emt 0:04:32]} 1/2-1/2

[Event "FIDE CB Open 2022"]
[Site "Ceske Budejovice"]
[Date "2022.07.02"]
[Round "2.12"]
[White "Mrazik, Tomas"]
[Black "Librelato, Kathie Goulart"]
[Result "0-1"]
[ECO "D31"]
[WhiteElo "2055"]
[BlackElo "2255"]
[Annotator "RC"]
[PlyCount "46"]
[EventDate "2022.07.01"]
[EventType "swiss"]
[EventCountry "CZE"]
[SourceTitle "playchess.com"]
[Source "ChessBase"]
[SourceQuality "1"]
[TimeControl "40/5400+30:1800+30"]

1. Nf3 {[%emt 0:00:05]} d5 {[%emt 0:00:08]} 2. c4 {[%emt 0:01:14]} e6 {[%emt 0:00:20]} 3. cxd5 {[%emt 0:00:59]} exd5 {[%emt 0:00:12]} 4. d4 {[%emt 0:00:10]} c6 {[%emt 0:01:18]} 5. Nc3 {[%emt 0:00:42]} Bf5 {[%emt 0:01:02]} 6. Qb3 {[%emt 0:01:58]} Qb6 {[%emt 0:04:32]} 7. Qxb6 {[%emt 0:04:45]} axb6 {[%emt 0:00:06]} 8. Bf4 {[%emt 0:01:23]} Nd7 {[%emt 0:07:47]} 9. Rc1 {[%emt 0:07:04]} b5 {[%emt 0:07:34]} 10. a3 {[%emt 0:02:07]} Ngf6 {[%emt 0:04:18]} 11. e3 {[%emt 0:05:14]} b4 {[%emt 0:00:25]} 12. axb4 {[%emt 0:00:13]} Bxb4 {[%emt 0:00:05]} 13. Nh4 {[%emt 0:05:42]} Be6 {[%emt 0:00:54]} 14. Bd3 {[%emt 0:03:52]} Ra2 {[%emt 0:09:47]} 15. Rb1 {[%emt 0:00:40]} Rxb2 {[%emt 0:00:34]} 16. Rxb2 {[%emt 0:02:57]} Bxc3+ {[%emt 0:00:06]} 17. Kd1 {[%emt 0:00:09]} Bxb2 {[%emt 0:00:15]} 18. Kc2 {[%emt 0:00:06]} Ba3 {[%emt 0:07:56]} 19. Ra1 {[%emt 0:00:13]} Be7 {[%emt 0:00:07]} 20. Ra8+ {[%emt 0:01:02]} Bd8 {[%emt 0:00:08]} 21. Bc7 {[%emt 0:02:16]} Ke7 {[%emt 0:01:32]} 22. Nf5+ {[%emt 0:01:46]} Bxf5 {[%emt 0:00:15]} 23. Bxf5 {[%emt 0:00:03]} Re8 {[%emt 0:01:15]} 0-1